Cogmind - Beta 16 --- EXPLORER MODE // 2025.11.01 @ 15:02:54 // Winter2019/RPGLIKE Player: RR-3MY Result: Destroyed by H-66 Slayer with Gauss Rifle Performance ------------- Evolutions (5) 2500 Regions Visited (7) 1400 Robots Destroyed (37) 185 Value Destroyed (1865) 1865 Prototype IDs (22) 440 Alien Tech Used (0) 0 Bonus (2182) 2182 TOTAL SCORE: 8572 Bonus ------- High Alert Combat Kills 173 Follower Combat Kills 509 Entered Garrisons 200 Used RIF Installer 500 Registered with UFD 300 Met Optimus in HQ 500 Cogmind --------- Core Integrity 0/800 Matter 178/300 Energy 131/150 System Corruption 5% Temperature Cool (0) Movement Core (50) Location -5/Factory Parts ------- > --- POWER (1) -------- Micro Fission Core > --- PROPULSION (1) --- (None) > --- UTILITY (9) ------ Structural Scanner Machine Analyzer Transmission Jammer ECM Suite Advanced Hacking Suite Advanced Hacking Suite Relay Coupler [NC] (132) Relay Coupler [Grunt] (124) Relay Coupler [Hunter] (78) > --- WEAPON (3) ------- Phase Cannon Phase Cannon Makeshift Axe > --- INVENTORY (10) --- Protomatter-64 Protomatter-52 Authchip [R/Combat] Authchip [R/Combat] Authchip [R/Combat] Authchip [R/Combat] Relay Coupler [Swarmer] (100) Relay Coupler [Grunt] (140) Relay Coupler [Sentry] (82) Relay Coupler [Sentry] (64) Peak State ------------ > --- POWER ------------ Micro Fission Core > --- PROPULSION ------- (None) > --- UTILITY ---------- Advanced Heat Sink Structural Scanner Machine Analyzer Transmission Jammer ECM Suite Improved Medium Armor Plating Advanced Hacking Suite Advanced Hacking Suite Improved Corruption Screen > --- WEAPON ----------- Hypervelocity Coil Gun Remote Datajack Makeshift Axe > --- INVENTORY -------- Protomatter Authchip [R/Combat] Authchip [R/Combat] Authchip [R/Combat] Authchip [R/Combat] Relay Coupler [Sentry] Relay Coupler [Sentry] Hypervelocity Coil Gun [Rating: 59] Favorites ----------- Power Light Ion Engine Engine Light Ion Engine Power Core Micro Fission Core Propulsion Flight Unit Flight Unit Flight Unit Utility Structural Scanner Device Structural Scanner Processor Machine Analyzer Hackware Advanced Hacking Suite Protection Improved Medium Armor Plating Weapon Makeshift Axe Energy Cannon Phase Cannon Ballistic Gun Hypervelocity Coil Gun Ballistic Cannon Light Cannon Special Weapon Remote Datajack Impact Weapon Hammer Slashing Weapon Makeshift Axe Piercing Weapon Spear Build | -11 -10 -10 -10 -7 -5 -5 -5 ------- Run | Yrd Mat Min Sub Scr Fac Gar Fac Slots Evolved 10 | 1 . . . 2 6 1 . Power . | . . . . . . . . Propulsion . | . . . . . . . . Utility 8 | 1 . . . 1 6 . . Weapon 2 | . . . . 1 . 1 . Parts Attached 32 | 3 4 . 1 4 10 7 3 Power 4 | . 1 . . 1 2 . . Engine 3 | . 1 . . 1 1 . . Core 1 | . . . . . 1 . . Reactor . | . . . . . . . . Propulsion 2 | . 1 . . . . 1 . Treads . | . . . . . . . . Leg . | . . . . . . . . Wheel . | . . . . . . . . Hover . | . . . . . . . . Flight 2 | . 1 . . . . 1 . Utility 15 | 2 . . 1 1 7 3 1 Device 6 | 2 . . 1 1 1 . 1 Storage . | . . . . . . . . Processor 2 | . . . . . 2 . . Hackware 5 | . . . . . 2 3 . Protection 2 | . . . . . 2 . . Artifact . | . . . . . . . . Weapon 11 | 1 2 . . 2 1 3 2 Energy Gun . | . . . . . . . . Energy Cannon 3 | . . . . . . 1 2 Ballistic Gun 3 | 1 . . . . 1 1 . Ballistic Cannon 1 | . 1 . . . . . . Launcher . | . . . . . . . . Special Weapon 1 | . . . . . . 1 . Impact Weapon 1 | . 1 . . . . . . Slashing Weapon 1 | . . . . 1 . . . Piercing Weapon 1 | . . . . 1 . . . Special Melee Weapon . | . . . . . . . . Unidentified Prototypes . | . . . . . . . . Parts Lost . | . . . . . . . . Power . | . . . . . . . . Propulsion . | . . . . . . . . Utility . | . . . . . . . . Weapon . | . . . . . . . . Highest Loss Streak . | . . . . . . . . To Critical Strikes . | . . . . . . . . Average Backups 4 | 2 2 2 2 4 3 6 8 Power . | . . . . . . . . Propulsion . | . . . . . . . . Utility 2 | 1 1 1 . . . 5 8 Weapon . | . 1 1 1 . . . . Tool/Special . | . . . . . . . . Unused Backups 48 | 1 1 . . 27 2 6 11 Power 8 | . . . . 6 2 . . Propulsion 9 | 1 . . . 4 . 4 . Utility 24 | . . . . 12 . 1 11 Weapon 5 | . 1 . . 4 . . . Tool/Special 2 | . . . . 1 . 1 . Average Slot Usage (%) 80 | . 94 77 62 74 77 85 92 Engine 9 | . 20 20 17 12 6 . . Core 2 | . . . . . 1 6 7 Flight 1 | . 16 . . . . . 3 Device 33 | . 39 38 35 38 29 25 21 Processor 4 | . . . . . 10 13 7 Hackware 7 | . . . . . 10 15 35 Protection 1 | . . . . . 3 4 . Ballistic Gun 2 | . 3 . . . 5 6 2 Ballistic Cannon 8 | . 15 19 8 11 1 . . Slashing Weapon 7 | . . . . 11 7 6 7 Peak Build Rating 59 | 3 5 4 4 16 53 59 56 Average Rating 24 | 1 4 3 3 11 40 53 53 On Entrance 13 | . . . . . 1 53 52 Avg Prop Armor Cover (%) 4 | . . . . . . . 4 Naked Turns 141 | . . . 1 140 . . . Heaviest Build 29 | 4 8 8 9 13 26 29 28 Greatest Support 35 | 8 9 8 8 13 28 35 35 Greatest Overweight (x) 1 | . . . 1 . . 1 . Average Overweight (x) . | . . . . . . . . Largest Inventory Capacity 10 | 6 6 6 6 8 10 10 10 Average Capacity 8 | 5 6 6 6 7 9 10 10 Most Carried 10 | 6 6 5 5 8 7 10 10 Average Carried 4 | 2 2 2 1 4 2 7 10 Final Capacity 10 | 6 6 6 6 8 10 10 10 Final Carried 10 | 6 6 5 5 8 3 10 10 Class Distribution -------------------- 62% | Hacker-Mutant 35% | Infiltrator-Mutant Dominant Class ---------------- Hacker-Mutant | -10/Materials Hacker-Mutant | -10/Mines Hacker-Mutant | -10/Subcaves Infiltrator-Mutant | -7/Scraptown Hacker-Mutant | -5/Factory Hacker-Mutant | -5/Garrison Hacker-Mutant | -5/Factory Resources | -11 -10 -10 -10 -7 -5 -5 -5 ----------- Run | Yrd Mat Min Sub Scr Fac Gar Fac Matter Collected 1163 | 63 321 174 33 117 195 260 . Remotely . | . . . . . . . . Salvage Created 914 | 81 113 78 . . 133 434 75 Parts 96 | 8 17 5 . . 7 53 6 Haulers Intercepted . | . . . . . . . . Recyclers Shooed 1 | 1 . . . . . . . Parts Field Recycled . | . . . . . . . . Retrieved Matter . | . . . . . . . . Parts Self-Destructed . | . . . . . . . . Prevented . | . . . . . . . . Parts Restored . | . . . . . . . . Kills | -11 -10 -10 -10 -7 -5 -5 -5 ------- Run | Yrd Mat Min Sub Scr Fac Gar Fac Combat Hostiles Destroyed 35 | . 6 6 . . 2 19 2 Melee 17 | . . . . . 2 13 2 Guns 7 | . 2 . . . . 5 . Cannons 11 | . 4 6 . . . 1 . Classes Destroyed 11 | 2 3 2 . . . 2 2 Tunneler 2 | 2 . . . . . . . Recycler 1 | 1 . . . . . . . Watcher 4 | . 3 . . . 1 . . Swarmer 8 | . 5 . . . . 3 . Saboteur 5 | . . . . . . 5 . Grunt 11 | . 1 . . . . 10 . Sentry 3 | . . 1 . . 2 . . Programmer 2 | . . . . . . 1 1 Behemoth 1 | . . . . . . . 1 Botcube 1 | . . . . . . . 1 Assembled 5 | . . 5 . . . . . Best Kill Streak 5 | 2 2 4 . . 2 5 1 Combat Bots Only 5 | . 2 4 . . 1 5 1 Max Kills in Single Turn 1 | 1 1 1 . . 1 1 1 Gunslinging . | . . . . . . . . Exploded . | . . . . . . . . Melee 1 | . . . . . 1 1 1 Uniques/NPCs Destroyed . | . . . . . . . . Combat | -11 -10 -10 -10 -7 -5 -5 -5 -------- Run | Yrd Mat Min Sub Scr Fac Gar Fac Hostile Shots Fired 283 | . 14 24 . . 12 108 125 Missed 72 | . 4 3 . . 3 36 26 Hits 211 | . 10 21 . . 9 72 99 Melee 5 | . . 2 . . . 3 . Projectile 206 | . 10 19 . . 9 69 99 Critical Strikes 12 | . 1 . . . . 6 5 Damage Taken 2379 | . 50 194 . . 137 864 1134 Core 1948 | . 39 156 . . 120 675 958 Absorbed by Shields 41 | . . . . . . 41 . Redirected to Core 1214 | . 29 116 . . 60 416 593 Ignored by Resistances 1441 | . 37 121 . . 80 534 669 Core Remaining (%) 85 | 100 . . . 71 . . . Volleys Fired 94 | 8 16 31 . . 7 27 5 Largest 2 | 1 1 1 . . 1 1 2 Hottest 170 | 20 30 30 . . 35 65 170 Shots Fired 99 | 8 16 31 . . 7 28 9 Gun 40 | 8 2 . . . 7 23 . Cannon 57 | . 14 31 . . . 3 9 Launcher . | . . . . . . . . Special 2 | . . . . . . 2 . Kinetic 85 | 8 16 31 . . 7 23 . Thermal 12 | . . . . . . 3 9 Explosive . | . . . . . . . . Electromagnetic . | . . . . . . . . Robot Hit Streak 24 | 4 5 14 . . 11 24 12 Robot Miss Streak 2 | 1 2 2 . . . 2 . Penetration Max 1 | . . . . . . 1 . Secondary Targets . | . . . . . . . . Shots Hit Robots 158 | 6 12 26 . . 16 66 32 Core Hits 67 | 3 9 12 . . 5 31 7 Critical Kills 4 | . . . . . . 4 . Critical Parts Destroyed 5 | . . . . . 1 4 . Critical Strikes 18 | . 1 . . . 2 11 4 Destroy 9 | . . . . . 1 8 . Blast 1 | . 1 . . . . . . Sever 8 | . . . . . 1 3 4 Melee Attacks 140 | . 3 . . . 12 94 31 Impact 3 | . 3 . . . . . . Slashing 137 | . . . . . 12 94 31 Piercing . | . . . . . . . . Sneak Attacks 7 | . . . . . . 2 5 Combat Hostiles 2 | . . . . . . 2 . Follow-up Attacks . | . . . . . . . . Damage Inflicted 4514 | 78 194 452 . . 427 1985 1378 Guns 325 | 78 26 . . . 64 157 . Cannons 983 | . 168 452 . . . 55 308 Explosions . | . . . . . . . . Melee 3206 | . . . . . 363 1773 1070 Ramming . | . . . . . . . . Kinetic 945 | 78 194 452 . . 64 157 . Thermal 363 | . . . . . . 55 308 Explosive . | . . . . . . . . Electromagnetic . | . . . . . . . . Impact . | . . . . . . . . Slashing 3206 | . . . . . 363 1773 1070 Piercing . | . . . . . . . . Highest Corruption 5 | . 1 1 1 1 . 3 5 Average Corruption 1 | . 1 1 1 1 . 2 3 Corruption Purged . | . . . . . . . . Corruption Blocked . | . . . . . . . . Effects 12 | . . 2 1 . . 1 8 Message Errors 1 | . . . . . . . 1 Matter Fused 4 | . . . 1 . . . 3 Heat Flow Errors 1 | . . . . . . . 1 Energy Discharges 2 | . . 1 . . . . 1 Parts Fused 1 | . . 1 . . . . . Data Loss (minor) 1 | . . . . . . . 1 Misfires 1 | . . . . . . 1 . Weapon Failures 1 | . . . . . . . 1 Overload Shots . | . . . . . . . . Overflow Damage 126 | . . 20 . . . 21 85 Projectiles 20 | . . 20 . . . . . Explosions . | . . . . . . . . Melee 106 | . . . . . . 21 85 Knockbacks 7 | . 1 6 . . . . . Impact . | . . . . . . . . Kinetic 6 | . 1 5 . . . . . Secondary 1 | . . 1 . . . . . Self-Inflicted Damage . | . . . . . . . . Shots . | . . . . . . . . Rammed . | . . . . . . . . Targets Rammed . | . . . . . . . . Kicked . | . . . . . . . . Crushed . | . . . . . . . . Highest Temperature 632 | . 2 35 . . . 60 632 Average Temperature 150 | . 2 17 . . . 25 237 Received Heat Transfer 924 | . 6 167 . . 45 386 320 Effects 8 | . . . . . . . 8 Shutdowns 1 | . . . . . . . 1 Energy Bleed 2 | . . . . . . . 2 Interference 2 | . . . . . . . 2 Matter Decay 1 | . . . . . . . 1 Short Circuit 1 | . . . . . . . 1 Damage (minor) 1 | . . . . . . . 1 Siege Activations . | . . . . . . . . Martial Activations . | . . . . . . . . Shielding Activations . | . . . . . . . . Robots Disrupted . | . . . . . . . . Combat Hostiles . | . . . . . . . . Robots Corrupted . | . . . . . . . . Combat Hostiles . | . . . . . . . . Parts Fried . | . . . . . . . . Impact Corruptions . | . . . . . . . . Robots Melted . | . . . . . . . . Combat Hostiles . | . . . . . . . . Parts Melted 1 | . . . . . . 1 . Heat Transferred 407 | . . . . . . 74 333 Parts Sabotaged 11 | . . . . . . 11 . Parts Stolen . | . . . . . . . . Parts Stripped . | . . . . . . . . Power Chain Reactions . | . . . . . . . . Alert | -11 -10 -10 -10 -7 -5 -5 -5 ------- Run | Yrd Mat Min Sub Scr Fac Gar Fac Maximum Alert Level 3 | . . . . . . 3 1 Low Security (%) 54 | 100 100 100 . . 100 14 7 Level 1 19 | . . . . . . 18 92 Level 2 15 | . . . . . . 41 . Level 3 9 | . . . . . . 25 . Level 4 . | . . . . . . . . Level 5 . | . . . . . . . . High Security . | . . . . . . . . Max Security . | . . . . . . . . Peak Influence 938 | 5 50 20 . . 61 938 367 Initial 365 | . 2 . . . . 11 365 Average 225 | 2 18 . . . 10 483 271 Influence Increases 1422 | 15 227 20 . . 155 927 78 Destroy 0b10 Robot/C 880 | . 120 20 . . 80 620 40 Destroy 0b10 Robot/NC 35 | 15 15 . . . 5 . . Destroy Leader 108 | . 26 . . . 32 30 20 Allied During Kill 6 | . . . . . 3 3 . Successful Hack 47 | . 35 . . . 4 4 4 Disable Machine 4 | . . . . . . 4 . Anti-Garrison Action 150 | . . . . . . 150 . Destroy Structure 132 | . 1 . . . 16 101 14 Partial Spotted 30 | . . . . . 15 15 . Lose Combat Pursuer 30 | . 30 . . . . . . Influence Decreases 1234 | 10 232 20 . . 133 11 828 Entered New Map 587 | . 3 . . . . 11 573 Time Decay 647 | 10 229 20 . . 133 . 255 Squads Dispatched 2 | . . . . . 1 . 1 Investigation . | . . . . . . . . Extermination 2 | . . . . . 1 . 1 Reinforcement . | . . . . . . . . Assault . | . . . . . . . . Garrison . | . . . . . . . . Intercept . | . . . . . . . . Searches Triggered . | . . . . . . . . Construction Impeded . | . . . . . . . . Haulers Reinforced . | . . . . . . . . Active Scanning Responses . | . . . . . . . . Cargo Convoy Interrupts . | . . . . . . . . Stealth | -11 -10 -10 -10 -7 -5 -5 -5 --------- Run | Yrd Mat Min Sub Scr Fac Gar Fac Distress Signals . | . . . . . . . . Communications Jammed 3 | . . . . . 3 . . Distress Signals 1 | . . . . . 1 . . Times Spotted 81 | . 11 23 . . 6 33 8 Peak Tracking Total 16 | . 2 16 . . 2 4 6 Tactical Retreats 8 | . 2 5 . . . 1 . ECM-based Alert Blocks 1 | . . . . . . 1 . Traps | -11 -10 -10 -10 -7 -5 -5 -5 ------- Run | Yrd Mat Min Sub Scr Fac Gar Fac Traps Triggered 6 | . 1 . . . . 5 . Indirectly . | . . . . . . . . Trap Hack Attempts . | . . . . . . . . Triggered . | . . . . . . . . Disarmed . | . . . . . . . . Reprogrammed . | . . . . . . . . Reused . | . . . . . . . . Traps Extracted . | . . . . . . . . Installed . | . . . . . . . . Triggered . | . . . . . . . . Machines | -11 -10 -10 -10 -7 -5 -5 -5 ---------- Run | Yrd Mat Min Sub Scr Fac Gar Fac Machines Disabled 4 | . . . . . . 4 . Max in Single Turn 1 | . . . . . . 1 . Garrison Relay 3 | . . . . . . 3 . Phase Generator 1 | . . . . . . 1 . Machines Repaired . | . . . . . . . . Machines Dismantled . | . . . . . . . . Machines Sabotaged . | . . . . . . . . Overloaded Fab Kills . | . . . . . . . . Hacking | -11 -10 -10 -10 -7 -5 -5 -5 --------- Run | Yrd Mat Min Sub Scr Fac Gar Fac Machines Accessed 23 | . 10 . . 5 2 2 4 Terminals 14 | . 8 . . . . 2 4 Fabricators . | . . . . . . . . Repair Stations . | . . . . . . . . Recycling Units 2 | . 2 . . . . . . Scanalyzers 1 | . . . . . 1 . . Garrison Access 1 | . . . . . 1 . . Total Hacks 90 | . 44 . . 29 3 3 11 Successful 73 | . 33 . . 29 1 2 8 Failed 17 | . 11 . . . 2 1 3 Catastrophic . | . . . . . . . . Database Lockouts . | . . . . . . . . Manual 38 | . 31 . . . . . 7 Terminals 52 | . 38 . . . . 3 11 Fabricators . | . . . . . . . . Repair Stations . | . . . . . . . . Recycling Units 6 | . 6 . . . . . . Scanalyzers 1 | . . . . . 1 . . Garrison Access 2 | . . . . . 2 . . Terminal Hacks 49 | . 16 . . 29 . 2 2 Record 21 | . . . . 21 . . . Robot Analysis 7 | . . . . 7 . . . Prototype ID Bank 11 | . 10 . . . . . 1 Open DSF 1 | . . . . . . . 1 Emergency Access Points 1 | . . . . . . 1 . Terminal Index 1 | . 1 . . . . . . Alert Level 1 | . 1 . . . . . . Maintenance Status 1 | . 1 . . . . . . Hauler Manifests 1 | . 1 . . . . . . Zone Layout 2 | . 2 . . . . . . Garrison Registry 1 | . . . . . . 1 . Proto ID Catalog 1 | . . . . 1 . . . Fabricator Hacks . | . . . . . . . . Repair Station Hacks . | . . . . . . . . Recycling Unit Hacks 3 | . 3 . . . . . . Report Inventory 2 | . 2 . . . . . . Retrieve Components 1 | . 1 . . . . . . Scanalyzer . | . . . . . . . . Garrison Access Hacks 1 | . . . . . 1 . . Unlock Access 1 | . . . . . 1 . . Unauthorized Hacks 20 | . 14 . . . . . 6 Terminals 19 | . 13 . . . . . 6 Track 2 | . 2 . . . . . . Botnet 6 | . 4 . . . . . 2 Operators 1 | . . . . . . . 1 Skim 10 | . 7 . . . . . 3 Fabricators . | . . . . . . . . Repair Stations . | . . . . . . . . Recycling Units 1 | . 1 . . . . . . Recyclers 1 | . 1 . . . . . . Scanalyzers . | . . . . . . . . Garrison Access . | . . . . . . . . Data Cores Recovered . | . . . . . . . . Used . | . . . . . . . . Hacking Detections 15 | . 8 . . . 2 2 3 Full Trace Events . | . . . . . . . . Feedback Events . | . . . . . . . . Feedback Blocked . | . . . . . . . . Robot Schematics Acquired . | . . . . . . . . Robots Built . | . . . . . . . . Authchips . | . . . . . . . . Time . | . . . . . . . . Total Robot Build Rating . | . . . . . . . . Part Schematics Acquired . | . . . . . . . . Parts Built . | . . . . . . . . Authchips . | . . . . . . . . Time . | . . . . . . . . Total Part Build Rating . | . . . . . . . . Part Studies Acquired . | . . . . . . . . Parts Repaired . | . . . . . . . . Time . | . . . . . . . . Parts Recycled . | . . . . . . . . Recycled Matter . | . . . . . . . . Retrieved Matter . | . . . . . . . . Retrieved Components 1 | . 1 . . . . . . Parts Scanalyzed . | . . . . . . . . Part Schematics Acquired . | . . . . . . . . Parts Damaged . | . . . . . . . . Bothacking | -11 -10 -10 -10 -7 -5 -5 -5 ------------ Run | Yrd Mat Min Sub Scr Fac Gar Fac Used RIF Installer 1 | . . . . . . 1 . Robots Hacked 1 | . . . . . . 1 . Non-combat . | . . . . . . . . Combat 1 | . . . . . . 1 . Robot Hacks Applied 1 | . . . . . . 1 . parse_system 1 | . . . . . . 1 . Relay Couplers Released 6 | . . . . . . 6 . Machine Destruction 6 | . . . . . . 6 . Attached 3 | . . . . . . 3 . Fabnet Peak Effective % . | . . . . . . . . Robots Rewired . | . . . . . . . . Allies Hacked . | . . . . . . . . Hacks Repelled . | . . . . . . . . Allies | -11 -10 -10 -10 -7 -5 -5 -5 -------- Run | Yrd Mat Min Sub Scr Fac Gar Fac Total Allies 3 | . . 2 . 1 . . . Largest Group 2 | . . 2 . 1 1 1 1 Highest-Rated Group 95 | . . 43 . 86 95 87 72 Highest-Rated Ally 95 | . . 31 . 86 95 87 72 Total Orders 1 | . . . . 1 . . . STAY 1 | . . . . 1 . . . Ally Attacks 51 | . . 17 . . 6 28 . Total Damage 1621 | . . 168 . . 378 1075 . Kills 18 | . . 4 . . 2 12 . Allies Corrupted . | . . . . . . . . Allies Melted . | . . . . . . . . Intel | -11 -10 -10 -10 -7 -5 -5 -5 ------- Run | Yrd Mat Min Sub Scr Fac Gar Fac Active Infowar (turns) 4090 | 62 384 405 80 1530 340 949 340 Sensors 1 | . . . . . . . 1 Structural 3992 | 62 384 405 80 1530 340 927 264 Seismic 789 | 3 382 404 . . . . . Machine Analysis 1519 | . . . . . 230 949 340 Jamming 3156 | . . . . 1528 339 949 340 ECM 1577 | . . . 79 1 221 939 337 Robot Analysis Total 7 | . . . . 7 . . . Derelict Logs Recovered 1 | . . 1 . . . . . Drone Launches . | . . . . . . . . Drone Recoveries . | . . . . . . . . Exploration | -11 -10 -10 -10 -7 -5 -5 -5 ------------- Run | Yrd Mat Min Sub Scr Fac Gar Fac Turns Passed 4253 | 76 386 407 83 1671 341 949 340 Spaces Moved 5933 | 50 657 626 110 2911 374 678 527 Core 4975 | 50 86 626 110 2911 374 604 214 Treads . | . . . . . . . . Legs . | . . . . . . . . Wheels . | . . . . . . . . Hover . | . . . . . . . . Flight 958 | . 571 . . . . 74 313 Fastest Speed 35 | 50 40 50 50 50 50 35 35 Average Speed 50 | 50 41 50 65 50 50 67 41 Slowest Speed 100 | 50 50 50 100 50 50 100 50 Overloaded Moves . | . . . . . . . . Propulsion Burnouts . | . . . . . . . . Robots Hopped . | . . . . . . . . Potential Cave-ins . | . . . . . . . . Cave-ins Triggered . | . . . . . . . . Exploration Rate (%) 50 | 5 97 97 7 93 10 78 14 Regions Visited 7 Branch Regions 3 Pre-discovered Areas 1 | . . 1 . . . . . Known Exits Taken 5 | 1 1 1 . 1 1 . . Unknown Exits Taken 1 | . . . 1 . . . . Scrap Searched 9 | . . 1 . 8 . . . Spaces Dug 36 | . 1 . . . 3 24 8 Terrain Destroyed 36 | . 1 . . . 3 24 8 Melee 36 | . 1 . . . 3 24 8 Projectile . | . . . . . . . . AOE . | . . . . . . . . Terrain Rammed . | . . . . . . . . Walls Destroyed . | . . . . . . . . Machines Disabled . | . . . . . . . . Actions | -11 -10 -10 -10 -7 -5 -5 -5 --------- Run | Yrd Mat Min Sub Scr Fac Gar Fac Total 6967 | 93 751 690 122 3151 505 1046 609 Wait 478 | 23 57 25 3 128 81 134 27 Move 5926 | 49 656 625 109 2910 373 677 527 Hop . | . . . . . . . . Pick Up 70 | 5 1 . 1 48 1 14 . Fast Attach 33 | 3 2 . . 3 10 11 4 Attach 28 | . 4 4 4 7 6 3 . Detach 21 | 3 4 3 4 7 . . . Swap 2 | . 2 . . . . . . Drop 69 | 2 3 1 1 48 4 6 4 Fire 94 | 8 16 31 . . 7 27 5 Melee 140 | . 3 . . . 12 94 31 Ram . | . . . . . . . . Kick . | . . . . . . . . Crush . | . . . . . . . . Escape Stasis 39 | . . . . . . 39 . Rewire . | . . . . . . . . Trap . | . . . . . . . . Miscellaneous 67 | . 3 1 . . 11 41 11 Route ------- -11/Scrapyard -10/Materials (discovered 5 exits: *Mat x3 / *Min / Sub) -10/Mines (discovered 3 exits: *Mat x2 / *Sub) -10/Subcaves -7/Scraptown (discovered 2 exits: *Fac x2) -5/Factory -5/Garrison (discovered 3 exits: *Fac x3) -5/Factory (discovered 1 exit: *Upp) History --------- Turn | Location | Event 3 | -11/Scrapyard | Upgraded with Utility slot (x1) 6 | -11/Scrapyard | Identified exit to Materials 6 | -11/Scrapyard | Discovered exit to Materials (range 16) 77 | -11/Scrapyard | Entered Materials 85 | -10/Materials | Identified exit to Mines 85 | -10/Materials | Discovered exit to Mines (range 16) 169 | -10/Materials | Identified exit to Materials 169 | -10/Materials | Discovered exit to Materials (range 3) 323 | -10/Materials | Discovered exit to Materials (range 9) 326 | -10/Materials | Build established: Hacker-Mutant 377 | -10/Materials | Discovered exit to Materials (range 12) 394 | -10/Materials | Learned Storage trap positions 446 | -10/Materials | Identified exit to Subcaves 463 | -10/Materials | Entered Mines 479 | -10/Mines | A weapon hastily lodged in a ceiling crevice suddenly fell to the ground 524 | -10/Mines | Discovered exit to Materials (range 11) 541 | -10/Mines | Assembled infested the area 545 | -10/Mines | Discovered exit to Subcaves (range 8) 574 | -10/Mines | Discovered exit to Materials (range 14) 587 | -10/Mines | Learned location of Storage (-7) 628 | -10/Mines | Joined a pair of Derelicts in attacking an 0b10 outpost 689 | -10/Mines | Found DCF Scrap (12 items) 870 | -10/Mines | Entered Subcaves 871 | -10/Subcaves | Approached by a straggling Scientist 872 | -10/Subcaves | Reached level 2 882 | -10/Subcaves | Shifting Twisted Machinery released Sub. Beam Cannon 886 | -10/Subcaves | Shifting Twisted Machinery released Mak. Axe 924 | -10/Subcaves | Curiously followed by a Cobbler waking with a query about "LVR3C" 945 | -10/Subcaves | Scientist uncovered a shortcut to Scraptown 953 | -10/Subcaves | Entered Scraptown 955 | -7/Scraptown | Reached level 3 955 | -7/Scraptown | Reached level 4 955 | -7/Scraptown | Reached level 5 955 | -7/Scraptown | System corruption cleaned by C-Scrubber 976 | -7/Scraptown | Upgraded with Utility slot (x1) 976 | -7/Scraptown | Upgraded with Weapon slot (x1) 1100 | -7/Scraptown | Visited Cyclists 1115 | -7/Scraptown | Visited The Evicted 1133 | -7/Scraptown | Visited Awakened 1185 | -7/Scraptown | Visited UFD Registry 1185 | -7/Scraptown | Registered with UFD as "Flakcircuit" 1199 | -7/Scraptown | Visited SPCMW 1208 | -7/Scraptown | Visited Cave Peace 1320 | -7/Scraptown | Visited Scrap Suit Storage 1333 | -7/Scraptown | Visited Science Guys 1350 | -7/Scraptown | Visited Abandonware Association 1356 | -7/Scraptown | Learned abandonware demo "KABOOM.EXE" 1356 | -7/Scraptown | Learned abandonware demo "REBOOT5.EXE" 1371 | -7/Scraptown | Visited DA-N13 Charitable Foundation 1373 | -7/Scraptown | Found DCF Scrap (30 items) 1395 | -7/Scraptown | Visited Botcube Research 1399 | -7/Scraptown | Found Lrg. Botcube 1492 | -7/Scraptown | Visited Infowarlord's Domain 1507 | -7/Scraptown | Build established: Infiltrator-Mutant 1633 | -7/Scraptown | Found Scrap Suit 1670 | -7/Scraptown | Visited Chapter 10 1759 | -7/Scraptown | Visited Junk Repository 1779 | -7/Scraptown | Visited Science Testing Area 1786 | -7/Scraptown | Visited Analyses Database 1888 | -7/Scraptown | Entered Cyclist Reading Room 1897 | -7/Scraptown | Visited TADAMA 1908 | -7/Scraptown | Visited Observation Area 1950 | -7/Scraptown | Identified exit to Factory 1950 | -7/Scraptown | Discovered exit to Factory (range 11) 2417 | -7/Scraptown | Lrg. Botcube activated 2449 | -7/Scraptown | Lrg. Botcube completed mutation into treaded form, armed with 2 cannons. 2472 | -7/Scraptown | Discovered exit to Factory (range 5) 2594 | -7/Scraptown | Met Optimus 2594 | -7/Scraptown | Reached level 6 2594 | -7/Scraptown | Accepted into 0bPrime 2624 | -7/Scraptown | Entered Factory 2624 | -5/Factory | Accompanied by 1 ally 2626 | -5/Factory | Reached level 7 2626 | -5/Factory | Reached level 8 2626 | -5/Factory | Reached level 9 2626 | -5/Factory | Reached level 10 2626 | -5/Factory | Reached level 11 2626 | -5/Factory | Reached level 12 2626 | -5/Factory | Reached level 13 2626 | -5/Factory | Reached level 14 2626 | -5/Factory | Reached level 15 2626 | -5/Factory | Reached level 16 2626 | -5/Factory | Reached level 17 2626 | -5/Factory | Reached level 18 2626 | -5/Factory | Reached level 19 2626 | -5/Factory | Reached level 20 2644 | -5/Factory | Upgraded with Utility slot (x6) 2945 | -5/Factory | Identified exit to Garrison 2965 | -5/Factory | Entered Garrison 2965 | -5/Garrison | Accompanied by 1 ally 2975 | -5/Garrison | Triggered checkpoint 2996 | -5/Garrison | Build established: Hacker-Mutant 3012 | -5/Garrison | Garrison Relay disabled 3113 | -5/Garrison | Reached level 21 3131 | -5/Garrison | Upgraded with Weapon slot (x1) 3233 | -5/Garrison | Triggered checkpoint 3267 | -5/Garrison | Triggered checkpoint 3342 | -5/Garrison | Identified exit to Factory 3342 | -5/Garrison | Discovered exit to Factory (range 57) 3342 | -5/Garrison | Discovered exit to Factory (range 23) 3342 | -5/Garrison | Discovered exit to Factory (range 43) 3367 | -5/Garrison | Triggered checkpoint 3456 | -5/Garrison | Installed Relay Interface Framework 3584 | -5/Garrison | Garrison Relay disabled 3711 | -5/Garrison | Phase Generator disabled 3741 | -5/Garrison | Triggered checkpoint 3811 | -5/Garrison | Garrison Relay disabled 3818 | -5/Garrison | Triggered checkpoint 3819 | -5/Garrison | Reached level 22 3914 | -5/Garrison | Entered Factory 3914 | -5/Factory | Accompanied by 1 ally 3967 | -5/Factory | Identified exit to Upper Caves 3967 | -5/Factory | Discovered exit to Upper Caves (range 6) 3983 | -5/Factory | Identified exit to DSF 4030 | -5/Factory | Spotted B-75 Beast 4057 | -5/Factory | Core integrity fell below 50% 4063 | -5/Factory | Destroyed B-75 Beast 4112 | -5/Factory | Murdered *Adam 4112 | -5/Factory | Destroyed *Adam 4248 | -5/Factory | Core integrity fell below 20% 4254 | -5/Factory | Destroyed by H-66 Slayer with Gauss Rifle Last Messages --------------- 04243_ Penetrated by Slug. 04243_ Slug penetrates Wall. 04243_ Penetrated by Slug. 04245_ U-05 Engineer builds a Wall. 04246_ R-10 Processor collects Hpw. Shock Rifle. 04246_ Penetrated by Slug. 04247_ H-66 Slayer Hvy. Assault Rifle severed. 04249_ H-66 Slayer Phase Shifter severed. 04249_ R-10 Processor collects Phase Shifter. 04249_ Penetrated by Slug. 04250_ K-01 Serf cleans the Terminal. 04251_ Penetrated by Slug. 04253_ System corrupted: Energy discharge (-34). 04253_ ALERT: All DSF locations entering lockdown mode. 04253_ R-10 Processor collects Hvy. Assault Rifle. 04253_ P-70 Sage resets U-05 Engineer, system corruption cleaned. 04254_ Penetrated by Slug. Map ----- +----------------------------------------------------+ | ?????????????????????????????????????????????????? | | ?????????????????????????????????????????????????? | | ?????????????????????????????????????????????????? | | ?????????????????????????????????????????????????? | | ?????????????????????????????????????????????????? | | ?????????????????????????????????????????????????? | | ?????????????????????????????????????????????????? | | ?????????????????????????????????????????????????? | | ?????????????????????????????????????????????????? | | ?????????????????????????????????????????????????? | | ?????????????????????????????????????????????????? | | ?????????????????????????????????????????????????? | | ?????????????????????????????????????????????????? | | ?????????????????????????????????????????????????? | | ?????????????????????????????????????????????????? | | ?????????????????????????????????????????????????? | | ???????????"""""""""?????????????????????????????? | | ?????????????????????????????????????????????????? | | ???????????"""""""""?????????????????????????????? | | ????????????????????????????????? + ?????????????? | | ???????????"""""""""????????????? # ?????????????? | | ??????????? ????????? # ?????????????? | | ???????????######+######????????? # ??? | | ???????????## ##### # ? ######### | | ???????????## ############# ? # | | ???????????## k @ # """ ! | | ?????######## T" u + """ | | ?????######## "" # """ | | ????? u R # | | ?????????#### pp%u " """ | | ?????????#### h ###+################ """ | | ???????????## k Rh # ### """ | | ???????????####%h k### """" """" ### | | ??????????? ### ### """" """" ########### | | ?????????????## ### """" """" ########### | | ?????????????## ### """" """" ##????????# | | ?????????????## ### """" """" ##????????# | | ?????????????## ### """" """" ##????????# | | ?????????????## ### """" """" ##????????? | | ?????????????## ### "T" ##????????? | | ????????????? ?####################????????? | | ????????????? ? #######????????? | | ???????????? ?????? ?????????????? | | ???????????? ## ????? ?????????? | | ???????????? ## ??? #####+?????????? | | ????????????????? # ?????????? | | ???????????????????########## # ?????????????? | | ??????????????????? # # ?????????????? | | ??????????????????????????? # # ?????????????? | | ??????????????????????????? # + ?????????????? | +----------------------------------------------------+ Best States ------------- Heat Dissipation 44 Energy Generation 33 Energy Capacity 150 Matter Stores 300 Matter Capacity 300 Sight Range 16 Terrain Scan Density 210 ECM Strength 1 Jamming Range 12 Corruption Block 15 Armor Coverage 225 Resistance: KI 35 Resistance: TH 35 Resistance: EX 35 Resistance: EM 35 Resistance: I 35 Resistance: S 35 Resistance: P 35 Evasion (%) 63 Offensive Hacking 48 Relay Coupler Types 3 Relay Coupler Value 334 Authchip Count 4 Item Schematics ----------------- None Robot Schematics ------------------ None Fabricated ------------ Nothing Repaired ---------- Nothing Studied --------- None Alien Tech Used ----------------- None Achievements -------------- Bob, First Of His Name Bumper Bots Frankenstein I Survived The Infestation Join The Dark Side Nice Directions, Buddy Well Done Challenges ------------ None RPGLIKE | -11 -10 -10 -10 -7 -5 -5 -5 --------- Run | Yrd Mat Min Sub Scr Fac Gar Fac Levels Raised 21 | . . . 1 4 14 2 . XP Earned 37790 | 6000 790 600 1000 5535 21060 2707 98 XP Spent 37500 | 5990 . . . 5650 22300 3560 . Upgrades 35 | 10 . . . 5 14 6 . Utility Slot 8 | 1 . . . 1 6 . . Weapon Slot 2 | . . . . 1 . 1 . Core Integrity 4 | . . . . . . 4 . Energy Generation 3 | . . . . . 3 . . Mass Support 6 | 1 . . . 1 3 1 . Inventory Capacity 10 | 6 . . . 2 2 . . Terrain Scan Density 2 | 2 . . . . . . . Protomatter Created 743 | . 58 2 . . 81 519 83 Integrity Restored 1351 | . 25 6 . . 243 828 249 Core 1142 | . 18 6 . . 243 626 249 Parts 209 | . 7 . . . . 202 . Protomatter Decayed 439 | . 48 20 40 . . 331 . Game ------ Seed MetamassServoSubcomponent Manual? 0 Play Time 01:15:53 Cumulative 94.7 hours Start 2025.11.01 @ 09:21:07 End 2025.11.01 @ 15:02:54 Sessions 3 Manual Loads 0 Difficulty Explorer Special Mode Winter2019/RPGLIKE Game No. 20 Rogue 0 Adventurer 3 Explorer 17 Win Type - Total 11 Types 4/1/1/2/0/0/1/0/0/2 Lore% 55 Gallery% 46 Achievement% 45 Wizard Run 0 Options --------- Layout 2 ASCII 0 Keyboard 0 Movement Mouse Keybinds 0 Fullscreen 1 Font 24/Smallcaps Map View 50x44 Zoom Use 0% Tactical HUD 1 Map Filters NONE Filters NONE Steam 1 RUN: dc71575c-024f-4ab0-a68d-8b2bf1c12e82